fUSD/lending_fUSD_20251129
["ID","MTS","AMOUNT","RATE_DAILY","PERIOD"]
[395102355,1764427866723,-250.0,0.0002988,5]
[395102356,1764427866734,-250.0,0.0002988,5]
[395102357,1764427866744,-250.0,0.0002988,5]
[395102358,1764427866754,-250.0,0.0002988,5]
[395102359,1764427866764,-250.0,0.0002988,5]
[395102360,1764427866774,-250.0,0.0002988,5]
[395102361,1764427866784,-250.0,0.0002988,5]
[395102362,1764427866794,-250.0,0.0002988,5]
[395102363,1764427866804,-427.45964135,0.000299,10]
[395102364,1764427866818,-17253.21632027,0.000299,2]
[395102365,1764427866829,-335.09637846,0.000299,4]
[395102366,1764427866839,-335.09637846,0.000299,4]
[395102367,1764427866848,-335.09637846,0.000299,4]
[395102368,1764427866858,-335.09637846,0.000299,4]
[395102369,1764427866868,-335.09637846,0.000299,4]
[395102370,1764427866878,-335.09637846,0.000299,4]
[395102371,1764427866888,-335.09637846,0.000299,4]
[395102372,1764427866899,-335.09637846,0.000299,4]
[395102373,1764427866909,-335.09637846,0.000299,4]
[395102374,1764427866919,-335.09637846,0.000299,4]
[395102375,1764427866928,-335.09637846,0.000299,4]
[395102376,1764427866938,-335.09637846,0.000299,4]
[395102377,1764427866948,-335.09637846,0.000299,4]
[395102378,1764427866958,-335.09637846,0.000299,4]
[395102379,1764427866968,-335.09637846,0.000299,4]
[395102380,1764427866978,-335.09637846,0.000299,4]
[395102381,1764427866988,-335.09637846,0.000299,4]
[395102382,1764427866998,-335.09637846,0.000299,4]
[395102383,1764427867010,-335.09637846,0.000299,4]
[395102384,1764427867023,-335.09,0.000299,4]
[395102385,1764427867034,-164.86,0.000299,4]
[395102386,1764427867044,-264.8921404,0.00029903,2]
[395102387,1764427867054,-400.74777575,0.00029945,30]
[395102388,1764427867064,-235.09954416,0.0002999,2]
[395102389,1764427867075,-437.20083393,0.0003,2]
[395102390,1764427867086,-151.0,0.0003,2]
[395102391,1764427867096,-242.6967,0.0003,5]
[395102392,1764427867108,-762.57,0.0003,7]
[395102393,1764427867119,-1800.69672851,0.0003,2]
[395102394,1764427867131,-161.51942961,0.0003,2]
[395102395,1764427867142,-500.0,0.0003,2]
[395102396,1764427867152,-8781.49837818,0.0003,3]
[395102397,1764427867163,-800.0,0.0003,4]
[395102398,1764427867173,-800.0,0.0003,4]
[395102399,1764427867183,-800.0,0.0003,4]
[395102400,1764427867193,-800.0,0.0003,4]
[395102401,1764427867204,-800.0,0.0003,4]
[395102402,1764427867217,-800.0,0.0003,4]
[395102403,1764427867228,-800.0,0.0003,4]
[395102404,1764427867239,-800.0,0.0003,4]
[395102405,1764427867249,-800.0,0.0003,4]
[395102406,1764427867260,-800.0,0.0003,4]
[395102407,1764427867271,-200.0,0.0003,7]
[395102408,1764427867281,-28845.75252074,0.0003,2]
[395102409,1764427867292,-427.45964135,0.0003,120]
[395102410,1764427867303,-315.46536371,0.0003,30]
[395102411,1764427867313,-2099.0,0.0003,120]
[395102412,1764427867325,-181.27372979,0.0003,120]
[395102413,1764427867338,-345.5251956,0.0003,120]
[395102414,1764427867350,-2000.0,0.0003,2]
[395102415,1764427867360,-2000.0,0.0003,2]
[395102416,1764427867369,-2000.0,0.0003,2]
[395102417,1764427867380,-1215.19,0.0003,2]
[395102418,1764427867390,-1000.0,0.0003,120]
[395102419,1764427867400,-533.0,0.0003,2]
[395102420,1764427867409,-4676.53874514,0.0003,2]
[395102421,1764427867421,-19699.67526728,0.0003,2]
[395102422,1764427867431,-481.70727427,0.0003,14]
[395102423,1764427867441,-508.0,0.0003,7]
[395102424,1764427867452,-704.13,0.0003,8]
[395102425,1764427867462,-185.47,0.0003,22]
[395102426,1764427867472,-1500.0,0.0003,2]
[395102427,1764427867484,-3000.0,0.00030006,14]
[395102428,1764427867494,-24029.41471509,0.0003003,2]
[395102429,1764427867504,-152.0,0.00030031,5]
[395102430,1764427867514,-400.74777575,0.00030082,30]
[395102431,1764427867526,-12551.46,0.000301,2]
[395102432,1764427867535,-163.34417214,0.0003013,20]
[395102433,1764427867547,-1063.65613303,0.0003013,2]
[395102434,1764427867557,-1491.14888947,0.0003013,5]
[395102435,1764427867568,-628.21855535,0.0003013,2]
[395102436,1764427867578,-199.91260153,0.0003013,2]
[395102437,1764427867589,-1213.30179433,0.0003013,2]
[395102438,1764427867600,-200.0,0.0003013,2]
[395102439,1764427867610,-189.10110221,0.0003013,30]
[395102440,1764427867620,-13728.60358739,0.0003013,2]
[395102441,1764427867629,-5013.90175616,0.0003013,2]
[395102442,1764427867639,-7662.7305915,0.0003013,2]
[395102443,1764427867650,-869.13560064,0.00030136,120]
[395102444,1764427867660,-1215.62,0.00030137,2]
[395102445,1764427867670,-200.0,0.00030137,5]
[395102446,1764427867679,-294.93190149,0.00030137,5]
[395102447,1764427867689,-479.66,0.00030178,2]
[395102448,1764427867700,-479.66,0.00030178,2]
[395102449,1764427867711,-479.66,0.00030178,2]
[395102450,1764427867726,-479.66,0.00030178,2]
[395102451,1764427867736,-479.66,0.00030178,2]
[395102452,1764427867746,-479.66,0.00030178,2]
[395102453,1764427867757,-479.66,0.00030178,2]
[395102454,1764427867768,-479.66,0.00030178,2]
[395102455,1764427867778,-400.74777575,0.00030192,30]
[395102456,1764427867788,-711.54,0.00030277,2]
[395102457,1764427867799,-400.74777575,0.00030301,30]
[395102458,1764427867809,-600.00491841,0.00030433,7]
[395102459,1764427867819,-400.74777575,0.00030438,30]
[395102460,1764427867830,-755.58,0.000305,30]
[395102461,1764427867840,-1603.0,0.00030503,2]
[395102462,1764427867851,-1321.0,0.00030503,2]
[395102463,1764427867861,-1255.0,0.00030503,2]
[395102464,1764427867871,-640.0,0.00030503,2]
[395102465,1764427867882,-150.0,0.00030503,2]
[395102466,1764427867892,-152.0,0.00030505,6]
[395102467,1764427867902,-400.74777575,0.00030548,30]
[395102468,1764427867913,-1280.94,0.000306,7]
[395102469,1764427867923,-431.42848765,0.0003061,2]
[395102470,1764427867933,-384.63394623,0.0003061,2]
[395102471,1764427867943,-400.74777575,0.00030685,30]
[395102472,1764427867954,-400.0,0.00030685,5]
[395102473,1764427867964,-400.74777575,0.00030795,30]
[395102474,1764427867974,-427.45964135,0.000308,10]
[395102475,1764427867984,-2300.0,0.00030828,14]
[395102476,1764427867994,-3000.0,0.00030828,14]
[395102477,1764427868003,-2587.43522628,0.0003084,2]
[395102478,1764427868013,-400.74777575,0.00030904,30]
[395102479,1764427868023,-152.0,0.0003098,7]
[395102480,1764427868034,-338.56508865,0.00031,5]
[395102481,1764427868044,-1509.87381765,0.00031,120]
[395102482,1764427868054,-10507.81,0.00031,2]
[395102483,1764427868065,-999.999999,0.00031,2]
[395102484,1764427868074,-159.0,0.00031,12]
[395102485,1764427868084,-427.45964135,0.00031,120]
[395102486,1764427868094,-400.74777575,0.00031041,30]
[395102487,1764427868104,-479.66,0.00031137,2]
[395102488,1764427868114,-400.74777575,0.00031151,30]
[395102489,1764427868124,-755.58,0.000312,30]
[395102490,1764427868135,-220.21629014,0.00031233,5]
[395102491,1764427868145,-400.74777575,0.00031288,30]
[395102492,1764427868156,-152.0,0.00031455,8]
[395102493,1764427868166,-195.58847813,0.000315,2]
[395102494,1764427868177,-150.0,0.000315,2]
[395102495,1764427868188,-450.53,0.00031507,120]
[395102496,1764427868198,-1213.49,0.0003151,2]
[395102497,1764427868210,-500.0,0.00031587,7]
[395102498,1764427868220,-500.0,0.00031609,7]
[395102499,1764427868231,-3000.0,0.0003165,14]
[395102500,1764427868241,-500.0,0.0003166,7]
[395102501,1764427868251,-443.0,0.00031703,14]
[395102502,1764427868261,-479.66,0.00031713,2]
[395102503,1764427868271,-479.66,0.00031713,2]
[395102504,1764427868281,-2000.0,0.000318,2]
[395102505,1764427868291,-1280.94,0.000319,7]
[395102506,1764427868301,-152.0,0.00031929,9]
[395102507,1764427868310,-443.0,0.00031969,14]
[395102508,1764427868320,-447.3913417,0.00031979,2]
[395102509,1764427868330,-398.86540225,0.00031979,2]
[395102510,1764427868339,-602.62683819,0.00032,2]
[395102511,1764427868349,-5144.46185466,0.00032,30]
[395102512,1764427868359,-755.58,0.00032,30]
[395102513,1764427868368,-2836.09658419,0.00032,30]
[395102514,1764427868378,-160.34954458,0.00032,30]
[395102515,1764427868388,-1062.17153191,0.00032,5]
[395102516,1764427868398,-12551.46,0.00032,2]
[395102517,1764427868408,-1000.0,0.00032,120]
[395102518,1764427868419,-3429.45919531,0.00032,2]
[395102519,1764427868430,-44495.27958317,0.00032,2]
[395102520,1764427868440,-199.57117012,0.00032,120]
[395102521,1764427868450,-162.02898313,0.00032,120]
[395102522,1764427868460,-178.78464923,0.00032,120]
[395102523,1764427868470,-1733.62191936,0.00032,120]
[395102524,1764427868480,-161.90959983,0.00032,120]
[395102525,1764427868491,-174.12631602,0.00032,120]
[395102526,1764427868501,-203.69,0.00032021,30]
[395102527,1764427868511,-479.66,0.00032096,2]
[395102528,1764427868647,-479.66,0.00032096,2]
[395102529,1764427868658,-963.35,0.00032096,2]
[395102530,1764427868669,-479.66,0.00032096,2]
[395102531,1764427868679,-479.66,0.00032096,2]
[395102532,1764427868689,-959.32,0.00032096,2]
[395102533,1764427868700,-479.66,0.00032096,2]
[395102534,1764427868709,-479.66,0.00032096,2]
[395102535,1764427868721,-500.0,0.00032133,7]
[395102536,1764427868732,-885.91835061,0.000323,2]
[395102537,1764427868743,-152.9,0.00032332,2]
[395102538,1764427868753,-153.34,0.00032332,2]
[395102539,1764427868763,-228.75,0.00032332,2]
[395102540,1764427868773,-150.0,0.00032332,2]
[395102541,1764427868783,-150.0,0.00032332,2]
[395102542,1764427868792,-300.0,0.00032332,2]
[395102543,1764427868802,-152.0,0.00032404,10]
[395102544,1764427868812,-3000.0,0.00032472,14]
[395102545,1764427868821,-2300.0,0.00032472,14]
[395102546,1764427868831,-160.79194805,0.000325,5]
[395102547,1764427868841,-3400.79437713,0.00032562,2]
[395102548,1764427868851,-200.0,0.00032603,120]
[395102549,1764427868860,-1395.85381451,0.00032651,2]
[395102550,1764427868870,-479.66,0.00032672,2]
[395102551,1764427868879,-4784.94040299,0.000328,2]
[395102552,1764427868889,-460.0,0.00032877,10]
[395102553,1764427868898,-1215.62,0.00032877,2]
[395102554,1764427868908,-383.900636,0.00032877,31]
[395102555,1764427868917,-383.900636,0.00032877,31]
[395102556,1764427868926,-383.900643,0.00032877,31]
[395102557,1764427868936,-151.0,0.00032877,31]
[395102558,1764427868945,-151.0,0.00032877,31]
[395102559,1764427868954,-300.000119,0.00032877,31]
[395102560,1764427868964,-151.0,0.00032877,31]
[395102561,1764427868974,-151.0,0.00032877,31]
[395102562,1764427868983,-250.938995,0.00032877,31]
[395102563,1764427868993,-500.0,0.00032877,2]
[395102564,1764427869002,-308.43611506,0.00032877,2]
[395102565,1764427869012,-692.0,0.00032877,2]
[395102566,1764427869022,-500.0,0.00032877,2]
[395102567,1764427869031,-152.0,0.00032879,11]
[395102568,1764427869040,-1280.94,0.00033,14]
[395102569,1764427869049,-15890.29716548,0.00033,13]
[395102570,1764427869058,-12621.07733356,0.00033,13]
[395102571,1764427869067,-271.38816134,0.00033,10]
[395102572,1764427869076,-1543.83462762,0.00033,2]
[395102573,1764427869085,-152.14568759,0.00033,2]
[395102574,1764427869094,-1792.28393672,0.00033,2]
[395102575,1764427869103,-199.57117012,0.00033,120]
[395102576,1764427869112,-162.02898313,0.00033,120]
[395102577,1764427869121,-1733.62191936,0.00033,120]
[395102578,1764427869130,-161.90959983,0.00033,120]
[395102579,1764427869139,-1500.0,0.00033,30]
[395102580,1764427869148,-1500.0,0.00033,30]
[395102581,1764427869157,-692.0,0.00033014,2]
[395102582,1764427869166,-500.0,0.00033014,2]
[395102583,1764427869175,-479.66,0.00033055,2]
[395102584,1764427869183,-958.36,0.00033055,2]
[395102585,1764427869192,-479.66,0.00033055,2]
[395102586,1764427869201,-479.66,0.00033055,2]
[395102587,1764427869210,-781.89154975,0.00033129,30]
[395102588,1764427869219,-692.0,0.00033151,2]
[395102589,1764427869228,-500.0,0.00033151,2]
[395102590,1764427869237,-1000.0,0.00033165,2]
[395102591,1764427869246,-514.50202834,0.00033202,7]
[395102592,1764427869255,-500.0,0.00033206,7]
[395102593,1764427869264,-692.0,0.00033288,2]
[395102594,1764427869273,-500.0,0.00033288,2]
[395102595,1764427869287,-3000.0,0.00033294,14]
[395102596,1764427869297,-1000.0,0.00033333,7]
[395102597,1764427869306,-463.94482134,0.00033348,2]
[395102598,1764427869316,-152.0,0.00033353,12]
[395102599,1764427869326,-692.0,0.00033425,2]
[395102600,1764427869335,-500.0,0.00033425,2]
[395102601,1764427869344,-1200.3421059,0.000335,2]
[395102602,1764427869354,-1599.917,0.00033503,2]
[395102603,1764427869363,-229.457,0.00033503,2]
[395102604,1764427869372,-931.76684025,0.00033519,2]
[395102605,1764427869382,-781.89154975,0.00033538,30]
[395102606,1764427869391,-692.0,0.00033562,2]
[395102607,1764427869401,-500.0,0.00033562,2]
[395102608,1764427869413,-443.0,0.00033567,30]
[395102609,1764427869423,-692.0,0.00033699,2]
[395102610,1764427869432,-500.0,0.00033699,2]
[395102611,1764427869442,-152.0,0.00033828,13]
[395102612,1764427869451,-692.0,0.00033836,2]
[395102613,1764427869460,-500.0,0.00033836,2]
[395102614,1764427869470,-162.02898313,0.000339,120]
[395102615,1764427869479,-1733.62191936,0.000339,120]
[395102616,1764427869489,-161.90959983,0.000339,120]
[395102617,1764427869499,-202.39,0.000339,30]
[395102618,1764427869508,-500.0,0.00033939,60]
[395102619,1764427869518,-781.89154975,0.00033947,30]
[395102620,1764427869527,-692.0,0.00033973,2]
[395102621,1764427869537,-500.0,0.00033973,2]
[395102622,1764427869547,-172.880957,0.00033976,15]
[395102623,1764427869556,-323.92820681,0.00034,2]
[395102624,1764427869565,-1280.94,0.00034,14]
[395102625,1764427869574,-176.08958873,0.00034,30]
[395102626,1764427869583,-1000.0,0.00034,120]
[395102627,1764427869592,-1500.0,0.00034,30]
[395102628,1764427869601,-1500.0,0.00034,30]
[395102629,1764427869610,-27905.3,0.00034,14]
[395102630,1764427869619,-829.47,0.00034014,2]
[395102631,1764427869628,-972.8,0.00034014,2]
[395102632,1764427869637,-479.66,0.00034014,2]
[395102633,1764427869647,-479.66,0.00034014,2]
[395102634,1764427869656,-579.53531275,0.00034099,2]
[395102635,1764427869666,-692.0,0.0003411,2]
[395102636,1764427869675,-500.0,0.0003411,2]
[395102637,1764427869684,-3000.0,0.00034116,14]
[395102638,1764427869694,-2300.0,0.00034116,14]
[395102639,1764427869703,-217.0,0.000342,12]
[395102640,1764427869712,-692.0,0.00034247,2]
[395102641,1764427869724,-500.0,0.00034247,2]
[395102642,1764427869734,-152.0,0.00034302,14]
[395102643,1764427869744,-233.98,0.00034319,30]
[395102644,1764427869753,-9567.55576082,0.00034336,2]
[395102645,1764427869762,-591.06720876,0.00034336,2]
[395102646,1764427869771,-781.89154975,0.00034356,30]
[395102647,1764427869780,-692.0,0.00034384,2]
[395102648,1764427869789,-500.0,0.00034384,2]
[395102649,1764427869799,-1714.92653137,0.0003449,2]
[395102650,1764427869809,-500.0,0.00034521,2]
[395102651,1764427869818,-692.0,0.00034521,2]
[395102652,1764427869828,-500.0,0.00034521,2]
[395102653,1764427869837,-203.69,0.00034526,30]
[395102654,1764427869846,-479.66,0.00034589,2]
[395102655,1764427869855,-540.02,0.00034589,2]
[395102656,1764427869864,-692.0,0.00034658,2]
[395102657,1764427869874,-500.0,0.00034658,2]
[395102658,1764427869885,-1000.0,0.000347,120]
[395102659,1764427869894,-500.0,0.00034707,7]
[395102660,1764427869904,-481.11077973,0.00034717,2]
[395102661,1764427869913,-781.89154975,0.00034765,30]
[395102662,1764427869922,-152.0,0.00034777,15]
[395102663,1764427869931,-1178.99078687,0.0003479,2]
[395102664,1764427869940,-692.0,0.00034795,2]
[395102665,1764427869949,-500.0,0.00034795,2]
[395102666,1764427869957,-276580.8606699,0.000348,15]
[395102667,1764427870985,-3882.59119745,0.000348,15]
[395102668,1764427870996,-16644.48518465,0.000348,15]
[395102669,1764427871008,-2987.2,0.000348,15]
[395102670,1764427871054,-448.80928647,0.000348,15]
[395102671,1764427871100,-98.4813663,0.000348,15]
[395102672,1764427871135,-1156.91863443,0.000348,15]
[395102673,1764427994932,10000.01,0.00014,3]
[395102674,1764427994958,10000.01,0.00014,3]
[395102675,1764427994983,7651.51505271,0.00014,3]
[395102678,1764428493329,1992.631,0.00014695,2]
[395102679,1764428493442,172.169,0.00014695,2]
[395102703,1764429032139,-150.0,0.00014893,2]
[395102705,1764429032149,-293.0,0.00014893,2]
[395102707,1764429032158,-1029.73296337,0.00014893,2]
[395102710,1764429032175,-170.26703663,0.00014893,2]
[395102712,1764429032185,-211.0,0.00014893,2]
[395102714,1764429032194,-277.93543364,0.00014893,2]
[395102716,1764429032205,-195.0,0.00014893,2]
[395102718,1764429032214,-1200.0,0.00014894,2]
[395102720,1764429032224,-3803.13870191,0.00014894,2]
[395102722,1764429032233,-425.53463472,0.00014894,2]
[395102724,1764429032242,-500.0,0.00014894,2]
[395102726,1764429032251,-429.64260555,0.00014894,2]
[395102728,1764429032260,-500.0,0.00014894,2]
[395102729,1764429032269,-481.2934405,0.00014894,2]
[395102730,1764429032278,-500.0,0.00014894,2]
[395102731,1764429032290,-263.87266064,0.00014894,2]
[395102732,1764429032299,-336.266551,0.00014894,2]
[395102733,1764429032308,-500.0,0.00014894,2]
[395102734,1764429032319,-364.42107183,0.00014894,2]
[395102735,1764429032328,-316.105,0.00014895,2]
[395102736,1764429032338,-3230.5107,0.00014895,2]
[395102737,1764429032347,-235.2676,0.00014895,2]
[395102738,1764429032356,-280.8168,0.00014895,2]
[395102739,1764429032365,-1111.3756,0.00014895,2]
[395102740,1764429032374,-133734.15023523,0.00014895,2]
[395102741,1764429032388,-955.04341264,0.00014895,2]
[395102742,1764429032403,-902.50587645,0.00014895,2]
[395102743,1764429032414,-9639.70026846,0.00014895,2]
[395102744,1764429032433,-500.0,0.00014895,2]
[395102745,1764429032444,-509.33266233,0.00014895,2]
[395102747,1764429038306,-890.66248697,0.00014894,2]
[395102748,1764429038316,-613759.26754489,0.00014895,2]
[395102749,1764429038326,-1544.5344,0.00014895,2]
[395102750,1764429038335,-16943.10490576,0.00014994,2]
[395102751,1764429038345,-29999.99,0.00014994,2]
[395102752,1764429038355,-3255.04,0.00014994,2]
[395102753,1764429038364,-704.53,0.00014995,2]
[395102754,1764429038374,-600.0,0.00014995,2]
[395102755,1764429038383,-4993.69,0.00014995,2]
[395102756,1764429038396,-9999.99,0.00014995,2]
[395102757,1764429038405,-9999.99,0.00014995,2]
[395102758,1764429038415,-510.37,0.00014995,2]
[395102759,1764429038424,-499.99,0.00014995,2]
[395102760,1764429038435,-9999.99,0.00014995,2]
[395102761,1764429038445,-7704.66,0.00014995,2]
[395102762,1764429038454,-2530.78,0.00014995,2]
[395102763,1764429038464,-25003.89,0.00014995,2]
[395102764,1764429038476,-1114.06,0.00014995,2]
[395102765,1764429038485,-1539.04,0.00014995,2]
[395102766,1764429038494,-9999.99,0.00014995,2]
[395102767,1764429038504,-150.99,0.00014995,2]
[395102768,1764429038513,-999.99,0.00014995,2]
[395102769,1764429038522,-2954.1,0.00014995,2]
[395102770,1764429038531,-1190.92,0.00014995,2]
[395102771,1764429038542,-1000.0,0.00014995,2]
[395102772,1764429038551,-500.0,0.00015164,2]
[395102773,1764429038561,-704.53,0.00015269,2]
[395102774,1764429038570,-531.97,0.00015269,2]
[395102775,1764429038580,-5854.32,0.00015438,2]
[395102776,1764429038589,-704.53,0.00015543,2]
[395102777,1764429038598,-1600.0,0.00015721,2]
[395102778,1764429038607,-11447.55859942,0.00015761,2]
[395102779,1764429038616,-704.53,0.00015817,2]
[395102780,1764429038625,-504.164248,0.00015973,2]
[395102781,1764429038635,-500.0,0.00015973,2]
[395102782,1764429038644,-415.8000054,0.00015973,2]
[395102783,1764429038653,-500.0,0.00015973,2]
[395102784,1764429038662,-545.6682471,0.00015973,2]
[395102785,1764429038671,-500.0,0.00015973,2]
[395102786,1764429038681,-500.0,0.00015973,2]
[395102787,1764429038690,-500.0,0.00015973,2]
[395102788,1764429038699,-500.0,0.00015973,2]
[395102789,1764429038708,-500.0,0.00015973,2]
[395102790,1764429038717,-500.0,0.00015973,2]
[395102791,1764429038726,-500.0,0.00015973,2]
[395102792,1764429038735,-500.0,0.00015973,2]
[395102793,1764429038744,-50778.93053701,0.00016,2]
[395102794,1764429038754,-1852.42,0.00016008,2]
[395102795,1764429038763,-255.0,0.00016025,2]
[395102796,1764429038772,-704.53,0.00016091,2]
[395102797,1764429038782,-303.09526351,0.00016266,2]
[395102798,1764429038791,-252.0,0.00016295,2]
[395102799,1764429038801,-477.0,0.00016302,2]
[395102800,1764429038810,-231.0,0.00016337,2]
[395102801,1764429038820,-704.55,0.00016365,2]
[395102802,1764429038831,-1680.0,0.00016382,2]
[395102803,1764429038840,-195.0,0.00016382,2]
[395102804,1764429038850,-250.0,0.00016382,2]
[395102805,1764429038861,-778.37167217,0.00016421,2]
[395102806,1764429038870,-166.66,0.00016489,2]
[395102807,1764429038881,-505.40436336,0.00016521,2]
[395102808,1764429038891,-500.0,0.00016521,2]
[395102809,1764429038902,-500.0,0.00016521,2]
[395102810,1764429038912,-1000.0,0.00016521,2]
[395102811,1764429038921,-1000.00000017,0.00016521,2]
[395102812,1764429038931,-427.45964135,0.00016664,2]
[395102813,1764429038947,-500.0,0.00016973,2]
[395102814,1764429038958,-500.0,0.00016973,2]
[395102815,1764429038969,-157.55322003,0.00016973,2]
[395102816,1764429038979,-500.0,0.00016973,2]
[395102817,1764429038989,-500.0,0.00016973,2]
[395102818,1764429039000,-214.0,0.00016982,2]
[395102819,1764429039011,-250.0,0.00017,2]
[395102820,1764429039023,-166.66,0.00017033,2]
[395102821,1764429039035,-214.0,0.00017037,2]
[395102822,1764429039048,-1500.0,0.00017068,2]
[395102823,1764429039058,-214.0,0.00017205,2]
[395102824,1764429039070,-433.0,0.00017246,2]
[395102825,1764429039081,-214.0,0.00017298,2]
[395102826,1764429039091,-214.0,0.00017375,2]
[395102827,1764429039102,-214.0,0.00017489,2]
[395102828,1764429039113,-214.0,0.00017491,2]
[395102829,1764429039123,-1000.0,0.0001751,2]
[395102830,1764429039134,-1005.66494544,0.00017521,2]
[395102831,1764429039144,-1000.0,0.00017521,2]
[395102832,1764429039154,-500.0,0.00017521,2]
[395102833,1764429039164,-1004.12467031,0.00017521,2]
[395102834,1764429039174,-214.0,0.00017559,2]
[395102835,1764429039183,-166.66,0.00017577,2]
[395102836,1764429039194,-2000.0,0.00017616,2]
[395102837,1764429039203,-1600.0,0.00017686,2]
[395102838,1764429039212,-214.0,0.00017738,2]
[395102839,1764429039223,-214.0,0.00017748,2]
[395102840,1764429039232,-3803.13870184,0.00017784,2]
[395102841,1764429039241,-214.0,0.00017784,2]
[395102842,1764429039250,-156.11302106,0.00017944,2]
[395102843,1764429039598,-214.0,0.00017946,2]
[395102844,1764429039607,-19641.0,0.0001799,2]
[395102845,1764429039617,-10000.0,0.00017995,2]
[395102846,1764429039626,-214.0,0.00018034,2]
[395102847,1764429039635,-214.0,0.00018046,2]
[395102848,1764429039644,-1500.0,0.00018068,2]
[395102849,1764429039653,-166.66,0.00018122,2]
[395102850,1764429039662,-214.0,0.00018157,2]
[395102851,1764429039672,-2500.0,0.00018164,2]
[395102852,1764429039680,-214.0,0.00018186,2]
[395102853,1764429039690,-214.0,0.00018284,2]
[395102854,1764429039699,-214.0,0.00018364,2]
[395102855,1764429039708,-300.0,0.00018414,2]
[395102856,1764429039717,-150.0,0.00018503,2]
[395102857,1764429039726,-150.0,0.00018503,2]
[395102858,1764429039735,-214.0,0.00018524,2]
[395102859,1764429039744,-214.0,0.00018553,2]
[395102860,1764429039753,-736.0,0.00018557,2]
[395102861,1764429039762,-214.0,0.00018583,2]
[395102862,1764429039771,-214.0,0.00018593,2]
[395102863,1764429039780,-1384.52230467,0.00018616,2]
[395102864,1764429039789,-214.0,0.00018623,2]
[395102865,1764429039798,-214.0,0.0001863,2]
[395102866,1764429039808,-166.66,0.00018666,2]
[395102867,1764429039817,-3000.0,0.00018712,2]
[395102868,1764429039826,-214.0,0.00018733,2]
[395102869,1764429039835,-2557.06699941,0.00019,2]
[395102870,1764429039844,-166.66,0.0001921,2]
[395102871,1764429039853,-150.0,0.00019233,2]
[395102872,1764429039862,-3500.0,0.0001926,2]
[395102873,1764429039871,-6904.12823386,0.00019408,2]
[395102874,1764429039882,-1600.0,0.00019651,2]
[395102875,1764429039892,-250.0,0.00019679,2]
[395102876,1764429039902,-1000.0,0.00019699,2]
[395102877,1764429039912,-1000.0,0.000197,2]
[395102878,1764429039922,-1193.0,0.00019725,2]
[395102879,1764429039931,-909.0,0.00019725,2]
[395102880,1764429039940,-252.0,0.00019725,2]
[395102881,1764429039949,-2717.0,0.00019725,2]
[395102882,1764429039959,-6503.0,0.00019725,2]
[395102883,1764429039968,-311.1,0.00019783,2]
[395102884,1764429039977,-4000.0,0.00019808,2]
[395102885,1764429039987,-349.0,0.00019957,2]
[395102886,1764429039996,-150.0,0.00020283,2]
[395102888,1764429040006,-150.0,0.00020283,2]
[395102889,1764429040017,-150.0,0.00020283,2]
[395102890,1764429040026,-654.74,0.00020283,2]
[395102891,1764429040037,-214.32,0.000203,7]
[395102892,1764429040046,-221.2662804,0.00020356,2]
[395102893,1764429040056,-778.37167213,0.00020501,2]
[395102894,1764429040065,-3803.13870184,0.00020673,2]